[Event "Calvi Rapid Open 2019"]
[Site "Calvi"]
[Date "2019.05.18"]
[Round "1.3"]
[White "Petrosyan, Armen"]
[Black "Castagnerol, Ambroise"]
[Result "1-0"]
[ECO "C14"]
[WhiteElo "2409"]
[BlackElo "1406"]
[Annotator "NA"]
[PlyCount "25"]
[EventDate "2019.05.18"]
[EventType "rapid"]
[EventCountry "FRA"]
[SourceTitle "playchess.com"]
[Source "ChessBase"]
[SourceQuality "1"]
[TimeControl "600+3"]

1. e4 {[%emt 0:00:00]} e6 {[%emt 0:00:00]} 2. d4 {[%emt 0:00:05]} d5 {[%emt 0:00:00]} 3. Nc3 {[%emt 0:00:04]} Nf6 {[%emt 0:00:05]} 4. Bg5 {[%emt 0:00:06]} Be7 {[%emt 0:00:09]} 5. e5 {[%emt 0:00:05]} Nfd7 {[%emt 0:00:03]} 6. h4 {[%emt 0:00:05]} Bxg5 {[%emt 0:00:20]} 7. hxg5 {[%emt 0:00:02]} Qxg5 {[%emt 0:00:09]} 8. Nh3 {[%emt 0:00:10]} Qd8 {[%emt 0:00:09]} 9. Qg4 {[%emt 0:00:31]} O-O {[%emt 0:00:30]} 10. Ng5 {[%emt 0:02:12]} h6 {[%emt 0:00:30]} 11. Rxh6 {[%emt 0:00:32]} Re8 {[%emt 0:03:53]} 12. Qh5 {[%emt 0:01:12]} Qxg5 {[%emt 0:01:53]} 13. Rh8# {[%emt 0:00:03]} 1-0

[Event "Calvi Rapid Open 2019"]
[Site "Calvi"]
[Date "2019.05.18"]
[Round "1.4"]
[White "Barbolosi, Jean Baptiste"]
[Black "Massoni, Michael"]
[Result "0-1"]
[ECO "B43"]
[WhiteElo "1235"]
[BlackElo "2339"]
[Annotator "NA"]
[PlyCount "54"]
[EventDate "2019.05.18"]
[EventType "rapid"]
[EventCountry "FRA"]
[SourceTitle "playchess.com"]
[Source "ChessBase"]
[SourceQuality "1"]
[TimeControl "600+3"]

1. e4 {[%emt 0:00:00]} c5 {[%emt 0:00:01]} 2. Nf3 {[%emt 0:00:00]} d6 {[%emt 0:00:04]} 3. d4 {[%emt 0:00:02]} cxd4 {[%emt 0:00:05]} 4. Nxd4 {[%emt 0:00:01]} Nf6 {[%emt 0:00:02]} 5. Nc3 {[%emt 0:00:02]} e6 {[%emt 0:00:02]} 6. Bd3 {[%emt 0:00:30]} Be7 {[%emt 0:00:05]} 7. O-O {[%emt 0:00:03]} O-O {[%emt 0:00:05]} 8. f4 {[%emt 0:00:03]} Nc6 {[%emt 0:00:16]} 9. Nb3 {[%emt 0:00:06]} a6 {[%emt 0:00:13]} 10. Be3 {[%emt 0:00:41]} b5 {[%emt 0:00:28]} 11. a3 {[%emt 0:01:13]} Qc7 {[%emt 0:00:18]} 12. Rc1 {[%emt 0:00:14]} Bb7 {[%emt 0:00:57]} 13. Qd2 {[%emt 0:01:45]} Ng4 {[%emt 0:00:51]} 14. h3 {[%emt 0:01:04]} Nxe3 {[%emt 0:00:06]} 15. Qxe3 {[%emt 0:00:02]} Rfe8 {[%emt 0:01:52]} 16. Ne2 {[%emt 0:00:33]} Bf6 {[%emt 0:00:52]} 17. c3 {[%emt 0:00:34]} g6 {[%emt 0:00:14]} 18. Ned4 {[%emt 0:00:27]} Bg7 {[%emt 0:00:23]} 19. Nxc6 {[%emt 0:01:14]} Bxc6 {[%emt 0:00:05]} 20. Nd4 {[%emt 0:00:04]} Qa7 {[%emt 0:00:24]} 21. Rfe1 {[%emt 0:00:18]} Bd7 {[%emt 0:00:03]} 22. Nf3 {[%emt 0:00:19]} Qxe3+ {[%emt 0:00:22]} 23. Rxe3 {[%emt 0:00:01]} Bh6 {[%emt 0:00:09]} 24. g3 {[%emt 0:00:38]} e5 {[%emt 0:00:04]} 25. Kg2 {[%emt 0:00:38]} exf4 {[%emt 0:00:05]} 26. gxf4 {[%emt 0:00:02]} Bxf4 {[%emt 0:00:04]} 27. Re2 {[%emt 0:00:05]} Bxc1 {[%emt 0:00:04]} 0-1

[Event "Calvi Rapid Open 2019"]
[Site "Calvi"]
[Date "2019.05.18"]
[Round "2.3"]
[White "Simeoni, Lisandru"]
[Black "Petrosyan, Armen"]
[Result "0-1"]
[ECO "B15"]
[WhiteElo "1760"]
[BlackElo "2409"]
[Annotator "NA"]
[PlyCount "86"]
[EventDate "2019.05.18"]
[EventType "rapid"]
[EventCountry "FRA"]
[SourceTitle "playchess.com"]
[Source "ChessBase"]
[SourceQuality "1"]
[TimeControl "600+3"]

1. e4 {[%emt 0:00:00]} c6 {[%emt 0:00:00]} 2. d4 {[%emt 0:00:01]} d5 {[%emt 0:00:02]} 3. Nc3 {[%emt 0:00:02]} dxe4 {[%emt 0:00:07]} 4. Nxe4 {[%emt 0:00:04]} Nf6 {[%emt 0:00:10]} 5. Ng3 {[%emt 0:00:32]} e6 {[%emt 0:03:39]} 6. Nf3 {[%emt 0:00:18]} c5 {[%emt 0:00:09]} 7. Bg5 {[%emt 0:01:15]} cxd4 {[%emt 0:00:51]} 8. Qxd4 {[%emt 0:02:41]} Qxd4 {[%emt 0:00:04]} 9. Nxd4 {[%emt 0:00:04]} a6 {[%emt 0:00:02]} 10. O-O-O {[%emt 0:00:36]} Be7 {[%emt 0:01:04]} 11. Bxf6 {[%emt 0:01:17]} Bxf6 {[%emt 0:00:08]} 12. Kb1 {[%emt 0:00:37]} Bd7 {[%emt 0:00:15]} 13. Nh5 {[%emt 0:00:10]} Nc6 {[%emt 0:00:35]} 14. Nxf6+ {[%emt 0:00:27]} gxf6 {[%emt 0:00:02]} 15. Nb3 {[%emt 0:00:01]} Ne5 {[%emt 0:00:48]} 16. Be2 {[%emt 0:00:49]} Bc6 {[%emt 0:00:13]} 17. f3 {[%emt 0:00:36]} Rg8 {[%emt 0:00:24]} 18. Rhg1 {[%emt 0:00:17]} Rd8 {[%emt 0:00:29]} 19. f4 {[%emt 0:00:28]} Rxd1+ {[%emt 0:00:12]} 20. Rxd1 {[%emt 0:00:06]} Ng4 {[%emt 0:00:27]} 21. Bxg4 {[%emt 0:00:08]} Rxg4 {[%emt 0:00:01]} 22. g3 {[%emt 0:00:01]} h5 {[%emt 0:00:11]} 23. Na5 {[%emt 0:00:04]} Be4 {[%emt 0:00:05]} 24. Nc4 {[%emt 0:00:10]} Ke7 {[%emt 0:00:06]} 25. Ne3 {[%emt 0:00:08]} Rg8 {[%emt 0:00:04]} 26. Rd4 {[%emt 0:00:01]} f5 {[%emt 0:00:02]} 27. Nc4 {[%emt 0:00:05]} h4 {[%emt 0:00:06]} 28. Ne5 {[%emt 0:00:01]} f6 {[%emt 0:00:27]} 29. Nd3 {[%emt 0:00:15]} hxg3 {[%emt 0:00:03]} 30. hxg3 {[%emt 0:00:01]} Rxg3 {[%emt 0:00:02]} 31. b3 {[%emt 0:00:01]} Bxd3 {[%emt 0:00:11]} 32. cxd3 {[%emt 0:00:02]} e5 {[%emt 0:00:01]} 33. fxe5 {[%emt 0:00:02]} fxe5 {[%emt 0:00:01]} 34. Rd5 {[%emt 0:00:03]} Ke6 {[%emt 0:00:02]} 35. Rd8 {[%emt 0:00:02]} f4 {[%emt 0:00:01]} 36. Kc2 {[%emt 0:00:02]} Rg2+ {[%emt 0:00:03]} 37. Kd1 {[%emt 0:00:09]} Rxa2 {[%emt 0:00:02]} 38. Rb8 {[%emt 0:00:01]} b5 {[%emt 0:00:02]} 39. Rb6+ {[%emt 0:00:01]} Kd5 {[%emt 0:00:03]} 40. Rb8 {[%emt 0:00:02]} f3 {[%emt 0:00:00]} 41. Ke1 {[%emt 0:00:02]} Kd4 {[%emt 0:00:07]} 42. Rf8 {[%emt 0:00:08]} Ke3 {[%emt 0:00:02]} 43. Kf1 {[%emt 0:00:02]} Ra1# {[%emt 0:00:01]} 0-1

[Event "Calvi Rapid Open 2019"]
[Site "Calvi"]
[Date "2019.05.18"]
[Round "2.4"]
[White "Massoni, Michael"]
[Black "Autran, Yann"]
[Result "1-0"]
[ECO "D30"]
[WhiteElo "2339"]
[BlackElo "1918"]
[Annotator "NA"]
[PlyCount "83"]
[EventDate "2019.05.18"]
[EventType "rapid"]
[EventCountry "FRA"]
[SourceTitle "playchess.com"]
[Source "ChessBase"]
[SourceQuality "1"]
[TimeControl "600+3"]

1. d4 {[%emt 0:00:00]} d5 {[%emt 0:00:00]} 2. c4 {[%emt 0:00:02]} c6 {[%emt 0:00:00]} 3. Nf3 {[%emt 0:00:06]} Nf6 {[%emt 0:00:01]} 4. e3 {[%emt 0:00:02]} e6 {[%emt 0:00:42]} 5. Bd3 {[%emt 0:00:31]} Nbd7 {[%emt 0:00:07]} 6. O-O {[%emt 0:00:21]} Bd6 {[%emt 0:00:09]} 7. b3 {[%emt 0:00:05]} e5 {[%emt 0:02:36]} 8. dxe5 {[%emt 0:00:55]} Nxe5 {[%emt 0:00:01]} 9. Bb2 {[%emt 0:00:31]} Nxd3 {[%emt 0:00:14]} 10. Qxd3 {[%emt 0:00:03]} O-O {[%emt 0:01:36]} 11. cxd5 {[%emt 0:00:59]} cxd5 {[%emt 0:00:49]} 12. Nbd2 {[%emt 0:00:12]} Bg4 {[%emt 0:00:14]} 13. Rac1 {[%emt 0:00:56]} Bh5 {[%emt 0:00:19]} 14. Bxf6 {[%emt 0:02:15]} Qxf6 {[%emt 0:00:01]} 15. Qxd5 {[%emt 0:00:06]} Bg6 {[%emt 0:00:23]} 16. Ne4 {[%emt 0:00:08]} Bxe4 {[%emt 0:00:07]} 17. Qxe4 {[%emt 0:00:02]} Rab8 {[%emt 0:00:23]} 18. Rfd1 {[%emt 0:00:19]} Rfd8 {[%emt 0:00:38]} 19. Rd4 {[%emt 0:00:50]} g6 {[%emt 0:01:28]} 20. Rcd1 {[%emt 0:00:17]} Bc7 {[%emt 0:00:34]} 21. Rxd8+ {[%emt 0:00:21]} Rxd8 {[%emt 0:00:07]} 22. Rxd8+ {[%emt 0:00:19]} Qxd8 {[%emt 0:00:01]} 23. g3 {[%emt 0:00:03]} b6 {[%emt 0:00:29]} 24. h4 {[%emt 0:00:09]} a5 {[%emt 0:00:09]} 25. Kg2 {[%emt 0:00:28]} Qd7 {[%emt 0:00:03]} 26. Qa8+ {[%emt 0:00:22]} Kg7 {[%emt 0:00:00]} 27. Qe4 {[%emt 0:00:03]} Bd8 {[%emt 0:00:04]} 28. Qd4+ {[%emt 0:00:02]} Qxd4 {[%emt 0:00:02]} 29. Nxd4 {[%emt 0:00:01]} Be7 {[%emt 0:00:01]} 30. a4 {[%emt 0:00:01]} f5 {[%emt 0:00:04]} 31. Kf3 {[%emt 0:00:05]} Bd6 {[%emt 0:00:02]} 32. e4 {[%emt 0:00:16]} Bc5 {[%emt 0:00:01]} 33. Ne6+ {[%emt 0:00:03]} Kf6 {[%emt 0:00:01]} 34. Nxc5 {[%emt 0:00:12]} bxc5 {[%emt 0:00:01]} 35. Kf4 {[%emt 0:00:00]} fxe4 {[%emt 0:00:03]} 36. Kxe4 {[%emt 0:00:00]} Ke6 {[%emt 0:00:00]} 37. f3 {[%emt 0:00:03]} Kd6 {[%emt 0:00:05]} 38. g4 {[%emt 0:00:05]} Ke6 {[%emt 0:00:11]} 39. f4 {[%emt 0:00:01]} h5 {[%emt 0:00:00]} 40. gxh5 {[%emt 0:00:07]} gxh5 {[%emt 0:00:00]} 41. f5+ {[%emt 0:00:01]} Kf6 {[%emt 0:00:00]} 42. Kf4 {[%emt 0:00:01]} 1-0

[Event "Calvi Rapid Open 2019"]
[Site "Calvi"]
[Date "2019.05.18"]
[Round "3.3"]
[White "Petrosyan, Armen"]
[Black "Massardo, Quentin"]
[Result "1-0"]
[ECO "C65"]
[WhiteElo "2409"]
[BlackElo "1970"]
[Annotator "NA"]
[PlyCount "49"]
[EventDate "2019.05.18"]
[EventType "rapid"]
[EventCountry "FRA"]
[SourceTitle "playchess.com"]
[Source "ChessBase"]
[SourceQuality "1"]
[TimeControl "600+3"]

1. e4 {[%emt 0:00:00]} e5 {[%emt 0:00:00]} 2. Nf3 {[%emt 0:00:02]} Nc6 {[%emt 0:00:00]} 3. Bb5 {[%emt 0:00:03]} Nf6 {[%emt 0:00:01]} 4. O-O {[%emt 0:00:07]} Bc5 {[%emt 0:00:24]} 5. Nxe5 {[%emt 0:00:14]} Nxe5 {[%emt 0:00:03]} 6. d4 {[%emt 0:00:01]} a6 {[%emt 0:00:14]} 7. Be2 {[%emt 0:00:08]} Bb6 {[%emt 0:00:50]} 8. dxe5 {[%emt 0:00:14]} Nxe4 {[%emt 0:00:01]} 9. Qd5 {[%emt 0:02:25]} Ng5 {[%emt 0:01:43]} 10. Na3 {[%emt 0:01:26]} c6 {[%emt 0:01:40]} 11. Qd3 {[%emt 0:00:30]} O-O {[%emt 0:00:56]} 12. Nc4 {[%emt 0:00:06]} Bc7 {[%emt 0:00:01]} 13. f4 {[%emt 0:00:34]} Ne6 {[%emt 0:00:01]} 14. Be3 {[%emt 0:00:58]} f5 {[%emt 0:01:41]} 15. a4 {[%emt 0:00:50]} b6 {[%emt 0:00:27]} 16. Nd6 {[%emt 0:00:20]} Qe7 {[%emt 0:00:22]} 17. Nxf5 {[%emt 0:00:34]} Qb4 {[%emt 0:00:16]} 18. c3 {[%emt 0:00:11]} Qb3 {[%emt 0:00:12]} 19. Rf3 {[%emt 0:01:04]} a5 {[%emt 0:00:43]} 20. Ne7+ {[%emt 0:00:11]} Kf7 {[%emt 0:00:01]} 21. Nxc8 {[%emt 0:00:16]} Raxc8 {[%emt 0:00:04]} 22. Qxd7+ {[%emt 0:00:00]} Kg8 {[%emt 0:00:05]} 23. Ra3 {[%emt 0:00:08]} Qxb2 {[%emt 0:00:11]} 24. Qxe6+ {[%emt 0:00:04]} Kh8 {[%emt 0:00:02]} 25. Qa2 {[%emt 0:00:03]} 1-0

[Event "Calvi Rapid Open 2019"]
[Site "Calvi"]
[Date "2019.05.18"]
[Round "3.4"]
[White "Cristofari, Antoine"]
[Black "Massoni, Michael"]
[Result "0-1"]
[ECO "B13"]
[WhiteElo "2037"]
[BlackElo "2339"]
[Annotator "NA"]
[PlyCount "73"]
[EventDate "2019.05.18"]
[EventType "rapid"]
[EventCountry "FRA"]
[SourceTitle "playchess.com"]
[Source "ChessBase"]
[SourceQuality "1"]
[TimeControl "600+3"]

1. e4 {[%emt 0:00:00]} c6 {[%emt 0:00:03]} 2. d4 {[%emt 0:00:02]} d5 {[%emt 0:00:02]} 3. exd5 {[%emt 0:00:01]} cxd5 {[%emt 0:00:11]} 4. Bd3 {[%emt 0:00:02]} Nc6 {[%emt 0:00:00]} 5. c3 {[%emt 0:00:09]} Nf6 {[%emt 0:00:06]} 6. Bf4 {[%emt 0:00:04]} Bg4 {[%emt 0:00:30]} 7. Qb3 {[%emt 0:00:02]} Qd7 {[%emt 0:00:19]} 8. Nd2 {[%emt 0:00:07]} e6 {[%emt 0:00:55]} 9. Ngf3 {[%emt 0:00:02]} Bd6 {[%emt 0:00:41]} 10. Bxd6 {[%emt 0:00:38]} Qxd6 {[%emt 0:00:02]} 11. O-O {[%emt 0:00:42]} O-O {[%emt 0:00:11]} 12. Rfe1 {[%emt 0:00:14]} Qc7 {[%emt 0:00:47]} 13. Ne5 {[%emt 0:00:32]} Nxe5 {[%emt 0:00:13]} 14. Rxe5 {[%emt 0:00:17]} a6 {[%emt 0:00:42]} 15. Qc2 {[%emt 0:00:26]} g6 {[%emt 0:00:33]} 16. Nf1 {[%emt 0:01:49]} Bf5 {[%emt 0:00:09]} 17. Bxf5 {[%emt 0:00:35]} gxf5 {[%emt 0:00:02]} 18. Re3 {[%emt 0:00:21]} Kh8 {[%emt 0:00:20]} 19. Rh3 {[%emt 0:00:25]} Rg8 {[%emt 0:00:31]} 20. Qd2 {[%emt 0:00:05]} Rg6 {[%emt 0:00:38]} 21. Rh6 {[%emt 0:00:23]} Ng4 {[%emt 0:00:59]} 22. Rxg6 {[%emt 0:00:07]} hxg6 {[%emt 0:00:14]} 23. f3 {[%emt 0:00:05]} Nf6 {[%emt 0:00:17]} 24. Qh6+ {[%emt 0:00:19]} Kg8 {[%emt 0:00:00]} 25. Re1 {[%emt 0:00:09]} b5 {[%emt 0:00:34]} 26. a3 {[%emt 0:00:47]} a5 {[%emt 0:00:06]} 27. Ng3 {[%emt 0:02:06]} Rb8 {[%emt 0:00:16]} 28. Ne2 {[%emt 0:00:06]} Nh5 {[%emt 0:00:27]} 29. g4 {[%emt 0:00:14]} fxg4 {[%emt 0:00:09]} 30. fxg4 {[%emt 0:00:22]} Nf6 {[%emt 0:00:02]} 31. h3 {[%emt 0:00:00]} Ne4 {[%emt 0:00:08]} 32. Rf1 {[%emt 0:00:21]} Qe7 {[%emt 0:00:21]} 33. Kg2 {[%emt 0:00:03]} b4 {[%emt 0:00:07]} 34. axb4 {[%emt 0:00:02]} axb4 {[%emt 0:00:01]} 35. Nf4 {[%emt 0:00:01]} Qg5 {[%emt 0:00:40]} 36. Qxg5 {[%emt 0:00:06]} Nxg5 {[%emt 0:00:02]} 37. Rc1 {[%emt 0:00:03]} 0-1

[Event "Calvi Rapid Open 2019"]
[Site "Calvi"]
[Date "2019.05.18"]
[Round "4"]
[White "Massoni, Michael"]
[Black "Podvin, Antoine"]
[Result "1-0"]
[ECO "E16"]
[WhiteElo "2344"]
[BlackElo "2167"]
[Annotator "NA"]
[PlyCount "73"]
[EventDate "2019.05.18"]
[EventType "rapid"]
[EventCountry "FRA"]
[SourceTitle "playchess.com"]
[Source "ChessBase"]
[SourceQuality "1"]
[TimeControl "600+3"]

1. d4 {[%emt 0:00:00]} Nf6 {[%emt 0:00:00]} 2. c4 {[%emt 0:00:01]} e6 {[%emt 0:00:00]} 3. Nf3 {[%emt 0:00:02]} Bb4+ {[%emt 0:00:02]} 4. Bd2 {[%emt 0:00:01]} Qe7 {[%emt 0:00:02]} 5. e3 {[%emt 0:00:03]} b6 {[%emt 0:00:02]} 6. a3 {[%emt 0:00:24]} Bxd2+ {[%emt 0:00:02]} 7. Nbxd2 {[%emt 0:00:01]} Bb7 {[%emt 0:00:02]} 8. Be2 {[%emt 0:00:02]} d6 {[%emt 0:00:02]} 9. O-O {[%emt 0:00:03]} Nbd7 {[%emt 0:00:02]} 10. b4 {[%emt 0:00:07]} a5 {[%emt 0:00:03]} 11. Rb1 {[%emt 0:00:08]} O-O {[%emt 0:00:04]} 12. Qc2 {[%emt 0:01:45]} axb4 {[%emt 0:00:07]} 13. axb4 {[%emt 0:00:02]} Ra7 14. Rfc1 Rfa8 {[%emt 0:00:33]} 15. h3 {[%emt 0:01:56]} h6 {[%emt 0:01:13]} 16. Bf1 {[%emt 0:00:10]} Ra2 {[%emt 0:00:21]} 17. Rb2 {[%emt 0:00:03]} Rxb2 {[%emt 0:00:15]} 18. Qxb2 {[%emt 0:00:02]} Ne4 {[%emt 0:00:13]} 19. Nxe4 Bxe4 {[%emt 0:00:01]} 20. Nd2 {[%emt 0:00:38]} Bg6 {[%emt 0:00:22]} 21. Be2 {[%emt 0:00:30]} e5 {[%emt 0:00:11]} 22. Bf3 {[%emt 0:00:01]} Ra4 {[%emt 0:00:53]} 23. Bc6 {[%emt 0:00:26]} Ra7 24. c5 {[%emt 0:00:44]} exd4 {[%emt 0:00:14]} 25. cxb6 {[%emt 0:00:30]} Nxb6 {[%emt 0:00:25]} 26. Qxd4 {[%emt 0:00:03]} Ra2 {[%emt 0:00:11]} 27. Nf3 {[%emt 0:00:15]} Kh7 {[%emt 0:00:42]} 28. e4 {[%emt 0:00:31]} Nd7 {[%emt 0:00:39]} 29. Bd5 {[%emt 0:00:06]} Re2 {[%emt 0:00:46]} 30. Rxc7 {[%emt 0:00:07]} Qd8 {[%emt 0:00:09]} 31. Qa7 {[%emt 0:01:42]} Nf6 {[%emt 0:01:26]} 32. Bxf7 {[%emt 0:00:08]} Bxe4 {[%emt 0:00:10]} 33. Bc4 {[%emt 0:00:04]} Bxf3 {[%emt 0:00:31]} 34. Bxe2 {[%emt 0:00:24]} Bxe2 {[%emt 0:00:09]} 35. Rxg7+ {[%emt 0:00:02]} Kh8 {[%emt 0:00:01]} 36. Rg6 {[%emt 0:00:02]} Qf8 {[%emt 0:00:20]} 37. Qd4 {[%emt 0:00:05]} 1-0

[Event "Calvi Rapid Open 2019"]
[Site "Calvi"]
[Date "2019.05.18"]
[Round "4"]
[White "Brethes, Francois"]
[Black "Petrosyan, Armen"]
[Result "1/2-1/2"]
[ECO "D02"]
[WhiteElo "2137"]
[BlackElo "2409"]
[Annotator "NA"]
[PlyCount "140"]
[EventDate "2019.05.18"]
[EventType "rapid"]
[EventCountry "FRA"]
[SourceTitle "playchess.com"]
[Source "ChessBase"]
[SourceQuality "1"]
[TimeControl "600+3"]

1. d4 {[%emt 0:00:00]} d5 {[%emt 0:00:00]} 2. Nf3 {[%emt 0:00:08]} Bf5 {[%emt 0:00:04]} 3. c4 {[%emt 0:00:08]} e6 {[%emt 0:00:02]} 4. Nc3 {[%emt 0:00:19]} c6 {[%emt 0:00:15]} 5. Bf4 {[%emt 0:00:20]} Bd6 {[%emt 0:01:12]} 6. Bxd6 {[%emt 0:00:26]} Qxd6 {[%emt 0:00:01]} 7. e3 {[%emt 0:00:33]} Nf6 {[%emt 0:00:23]} 8. Be2 {[%emt 0:00:16]} h6 {[%emt 0:00:10]} 9. Ne5 {[%emt 0:00:39]} Nbd7 {[%emt 0:02:57]} 10. Nxd7 {[%emt 0:02:58]} Qxd7 {[%emt 0:00:05]} 11. O-O {[%emt 0:00:06]} O-O {[%emt 0:00:07]} 12. Qb3 {[%emt 0:00:04]} Qc7 {[%emt 0:00:51]} 13. Bf3 {[%emt 0:00:03]} Qb6 {[%emt 0:00:39]} 14. Rfc1 {[%emt 0:02:02]} Rab8 {[%emt 0:01:16]} 15. Qxb6 {[%emt 0:00:34]} axb6 {[%emt 0:00:02]} 16. Na4 {[%emt 0:00:28]} Nd7 {[%emt 0:00:06]} 17. c5 {[%emt 0:00:10]} b5 {[%emt 0:00:05]} 18. Nc3 {[%emt 0:00:03]} Ra8 {[%emt 0:00:13]} 19. a3 {[%emt 0:00:02]} e5 {[%emt 0:00:34]} 20. Na2 {[%emt 0:00:13]} exd4 {[%emt 0:00:19]} 21. exd4 {[%emt 0:00:02]} Rfe8 {[%emt 0:00:02]} 22. Nb4 {[%emt 0:00:01]} Nf6 {[%emt 0:00:07]} 23. Re1 {[%emt 0:00:06]} Be4 {[%emt 0:00:06]} 24. Bxe4 {[%emt 0:00:25]} Nxe4 {[%emt 0:00:04]} 25. Re2 {[%emt 0:00:07]} Kf8 {[%emt 0:00:18]} 26. f3 {[%emt 0:00:11]} Ng5 {[%emt 0:00:06]} 27. Kf2 {[%emt 0:00:05]} Rxe2+ {[%emt 0:00:04]} 28. Kxe2 {[%emt 0:00:01]} Ne6 {[%emt 0:00:01]} 29. Rd1 {[%emt 0:00:17]} Re8 {[%emt 0:00:02]} 30. Kf2 {[%emt 0:00:01]} Nf4 {[%emt 0:00:07]} 31. Rd2 {[%emt 0:00:01]} g5 {[%emt 0:00:21]} 32. g3 {[%emt 0:00:02]} Ne6 {[%emt 0:00:01]} 33. Nc2 {[%emt 0:00:01]} Kg7 {[%emt 0:00:06]} 34. Re2 {[%emt 0:00:02]} Nc7 {[%emt 0:00:05]} 35. Rxe8 {[%emt 0:00:02]} Nxe8 {[%emt 0:00:01]} 36. Nb4 {[%emt 0:00:01]} f5 {[%emt 0:00:04]} 37. b3 {[%emt 0:00:00]} Kf6 {[%emt 0:00:05]} 38. Ke3 {[%emt 0:00:02]} Nc7 {[%emt 0:00:02]} 39. a4 {[%emt 0:00:02]} bxa4 40. bxa4 {[%emt 0:00:01]} Ne6 {[%emt 0:00:05]} 41. f4 {[%emt 0:00:06]} gxf4+ {[%emt 0:00:05]} 42. gxf4 {[%emt 0:00:01]} Kg6 {[%emt 0:00:04]} 43. a5 {[%emt 0:00:01]} Nc7 {[%emt 0:00:01]} 44. Kf3 {[%emt 0:00:10]} Kh5 {[%emt 0:00:03]} 45. Kg3 {[%emt 0:00:00]} Kg6 {[%emt 0:00:07]} 46. h3 {[%emt 0:00:06]} Kh5 {[%emt 0:00:02]} 47. Kf3 {[%emt 0:00:40]} Kh4 {[%emt 0:00:02]} 48. Kg2 {[%emt 0:00:04]} Ne6 {[%emt 0:00:04]} 49. a6 {[%emt 0:00:01]} bxa6 {[%emt 0:00:01]} 50. Nxc6 {[%emt 0:00:01]} Nxf4+ {[%emt 0:00:01]} 51. Kh2 {[%emt 0:00:10]} Ne6 {[%emt 0:00:02]} 52. Nb4 {[%emt 0:00:10]} Nxd4 {[%emt 0:00:06]} 53. c6 {[%emt 0:00:02]} Nb5 {[%emt 0:00:07]} 54. Nxd5 {[%emt 0:00:02]} a5 {[%emt 0:00:01]} 55. c7 {[%emt 0:00:02]} Nd6 {[%emt 0:00:02]} 56. Nb6 {[%emt 0:00:01]} Kg5 {[%emt 0:00:03]} 57. Kg3 {[%emt 0:00:02]} f4+ {[%emt 0:00:02]} 58. Kf3 {[%emt 0:00:02]} Kf5 {[%emt 0:00:01]} 59. c8=Q+ {[%emt 0:00:03]} Nxc8 60. Nxc8 a4 {[%emt 0:00:03]} 61. Nd6+ {[%emt 0:00:04]} Ke5 {[%emt 0:00:07]} 62. Nb5 {[%emt 0:00:01]} h5 {[%emt 0:00:03]} 63. h4 {[%emt 0:00:01]} Kf5 {[%emt 0:00:02]} 64. Na3 {[%emt 0:00:01]} Ke5 {[%emt 0:00:01]} 65. Nb5 {[%emt 0:00:08]} Kf5 {[%emt 0:00:03]} 66. Nd4+ {[%emt 0:00:03]} Ke5 {[%emt 0:00:03]} 67. Nc2 {[%emt 0:00:01]} Kf5 {[%emt 0:00:03]} 68. Nd4+ {[%emt 0:00:01]} Ke5 {[%emt 0:00:02]} 69. Nc2 {[%emt 0:00:01]} Kf5 {[%emt 0:00:03]} 70. Nd4+ {[%emt 0:00:00]} Ke5 {Ke4+} 1/2-1/2

[Event "Calvi Rapid Open 2019"]
[Site "Calvi"]
[Date "2019.05.18"]
[Round "5.3"]
[White "Petrosyan, Armen"]
[Black "Pieri, Pierre-Louis"]
[Result "1-0"]
[ECO "B40"]
[WhiteElo "2409"]
[BlackElo "2103"]
[Annotator "NA"]
[PlyCount "115"]
[EventDate "2019.05.18"]
[EventType "rapid"]
[EventCountry "FRA"]
[SourceTitle "playchess.com"]
[Source "ChessBase"]
[SourceQuality "1"]
[TimeControl "600+3"]

1. e4 {[%emt 0:00:00]} c5 {[%emt 0:00:00]} 2. Nf3 {[%emt 0:00:01]} e6 {[%emt 0:00:00]} 3. Nc3 {[%emt 0:00:02]} Nc6 {[%emt 0:00:01]} 4. Bb5 {[%emt 0:00:03]} Nd4 {[%emt 0:00:08]} 5. O-O {[%emt 0:00:08]} a6 {[%emt 0:00:33]} 6. Bd3 {[%emt 0:00:04]} Nc6 {[%emt 0:00:14]} 7. Re1 {[%emt 0:00:10]} g5 {[%emt 0:00:05]} 8. Kh1 {[%emt 0:00:13]} g4 {[%emt 0:00:16]} 9. Ng1 {[%emt 0:00:03]} h5 {[%emt 0:00:28]} 10. f4 {[%emt 0:01:09]} b5 {[%emt 0:01:21]} 11. e5 {[%emt 0:01:02]} Bb7 {[%emt 0:00:10]} 12. Be4 {[%emt 0:00:03]} Nh6 {[%emt 0:00:26]} 13. Nge2 {[%emt 0:00:15]} g3 {[%emt 0:02:01]} 14. h3 {[%emt 0:02:37]} c4 {[%emt 0:03:43]} 15. d4 {[%emt 0:00:41]} cxd3 {[%emt 0:00:01]} 16. Qxd3 {[%emt 0:01:03]} Bc5 {[%emt 0:00:34]} 17. Be3 {[%emt 0:00:44]} Nb4 {[%emt 0:00:28]} 18. Qd2 {[%emt 0:00:02]} Bxe3 {[%emt 0:00:07]} 19. Qxe3 {[%emt 0:00:02]} Nf5 {[%emt 0:00:11]} 20. Qc5 {[%emt 0:00:34]} Bxe4 {[%emt 0:00:05]} 21. Nxe4 {[%emt 0:00:01]} Nd5 {[%emt 0:00:04]} 22. N2xg3 {[%emt 0:00:29]} Rc8 {[%emt 0:00:00]} 23. Qf2 {[%emt 0:00:10]} Nxg3+ {[%emt 0:00:04]} 24. Qxg3 {[%emt 0:00:20]} Rxc2 {[%emt 0:00:04]} 25. Rac1 {[%emt 0:00:10]} Rxc1 {[%emt 0:00:03]} 26. Rxc1 {[%emt 0:00:01]} Kf8 {[%emt 0:00:01]} 27. Qg5 {[%emt 0:00:12]} Qxg5 {[%emt 0:00:05]} 28. fxg5 {[%emt 0:00:01]} Ke7 {[%emt 0:00:06]} 29. h4 {[%emt 0:00:05]} Ne3 {[%emt 0:00:03]} 30. Nf6 {[%emt 0:00:14]} Nf5 {[%emt 0:00:04]} 31. Rc7 {[%emt 0:00:08]} Rd8 {[%emt 0:00:03]} 32. g3 {[%emt 0:00:07]} Nxg3+ {[%emt 0:00:02]} 33. Kg2 {[%emt 0:00:03]} Nf5 {[%emt 0:00:00]} 34. Kh3 {[%emt 0:00:02]} Ne3 {[%emt 0:00:02]} 35. Nxh5 {[%emt 0:00:04]} Nc4 {[%emt 0:00:02]} 36. b3 {[%emt 0:00:06]} Nxe5 {[%emt 0:00:01]} 37. Nf6 {[%emt 0:00:02]} Kd6 {[%emt 0:00:03]} 38. Ra7 {[%emt 0:00:02]} Ke7 {[%emt 0:00:03]} 39. Kg3 {[%emt 0:00:06]} Kf8 {[%emt 0:00:03]} 40. h5 {[%emt 0:00:04]} d5 {[%emt 0:00:02]} 41. Kf4 {[%emt 0:00:03]} Nc6 {[%emt 0:00:05]} 42. Rc7 {[%emt 0:00:03]} Ne7 {[%emt 0:00:02]} 43. Ke5 {[%emt 0:00:09]} d4 {[%emt 0:00:02]} 44. Rd7 {[%emt 0:00:02]} Nc6+ {[%emt 0:00:05]} 45. Ke4 {[%emt 0:00:03]} Rxd7 {[%emt 0:00:08]} 46. Nxd7+ {[%emt 0:00:01]} Kg7 {[%emt 0:00:02]} 47. Nc5 {[%emt 0:00:06]} a5 {[%emt 0:00:02]} 48. a4 {[%emt 0:00:04]} bxa4 {[%emt 0:00:04]} 49. bxa4 {[%emt 0:00:01]} Kf8 {[%emt 0:00:05]} 50. Kd3 e5 51. Ke4 {[%emt 0:00:12]} Ke7 {[%emt 0:00:06]} 52. h6 {[%emt 0:00:05]} Kf8 {[%emt 0:00:01]} 53. Kd5 {[%emt 0:00:01]} d3 {[%emt 0:00:03]} 54. Nxd3 Nb4+ 55. Ke4 {[%emt 0:00:07]} Nxd3 {[%emt 0:00:08]} 56. Kxd3 {[%emt 0:00:00]} Kg8 {[%emt 0:00:02]} 57. Ke4 {[%emt 0:00:01]} Kh7 {[%emt 0:00:02]} 58. Kxe5 {[%emt 0:00:01]} 1-0